[Event "Titled Tuesday Blitz January 17 Late 2023"]
[White "Arnold, Ken"]
[Black "Martinez Ramirez, Lennis"]
[WhiteFideId "2056836"]
[BlackFideId "3509079"]
[WhiteElo "2355"]
[BlackElo "2426"]
[Result "0-1"]
[Round "02"]
[TimeControl "180+2"]
[Date "2023.01.17"]
[WhiteClock "0:01:44"]
[BlackClock "0:02:08"]

1. d4 {[%clk 0:03:00]}  d5 {[%clk 0:02:59]} 2. c4 {[%clk 0:03:00]}  e6 {[%clk 0:02:58]} 3. Nf3 {[%clk 0:03:00]}  Nf6 {[%clk 0:02:58]} 4. Nc3 {[%clk 0:03:00]}  Bb4 {[%clk 0:02:57]} 5. Ne5 {[%clk 0:02:54]}  O-O {[%clk 0:02:48]} 6. e3 {[%clk 0:02:49]}  Ne4 {[%clk 0:02:45]} 7. Qb3 {[%clk 0:02:47]}  Bxc3+ {[%clk 0:02:42]} 8. bxc3 {[%clk 0:02:47]}  Qh4 {[%clk 0:02:42]} 9. Qc2 {[%clk 0:02:31]}  Nd7 {[%clk 0:02:30]} 10. Nxd7 {[%clk 0:02:24]}  Bxd7 {[%clk 0:02:31]} 11. Bd3 {[%clk 0:02:20]}  f5 {[%clk 0:02:29]} 12. g3 {[%clk 0:02:16]}  Qh3 {[%clk 0:02:28]} 13. Bf1 {[%clk 0:02:12]}  Qh6 {[%clk 0:02:27]} 14. Bg2 {[%clk 0:02:06]}  dxc4 {[%clk 0:02:24]} 15. O-O {[%clk 0:02:00]}  Bc6 {[%clk 0:02:24]} 16. Ba3 {[%clk 0:01:53]}  Rf6 {[%clk 0:02:20]} 17. Rae1 {[%clk 0:01:46]}  Qh5 {[%clk 0:02:18]} 18. f3 {[%clk 0:01:44]}  Rh6 {[%clk 0:02:08]} 0-1


[Site "https://www.chess.com"]

[Event "Titled Tuesday Blitz January 17 Late 2023"]
[White "Haraguchi, Diego Sashaki"]
[Black "Haydon, David L"]
[WhiteFideId "22729925"]
[BlackFideId "415405"]
[WhiteElo "2015"]
[BlackElo "2253"]
[Result "0-1"]
[Round "02"]
[TimeControl "180+2"]
[Date "2023.01.17"]
[WhiteClock "0:01:28"]
[BlackClock "0:01:46"]

1. d4 {[%clk 0:02:54]}  c6 {[%clk 0:02:50]} 2. c4 {[%clk 0:02:55]}  d5 {[%clk 0:02:50]} 3. Nc3 {[%clk 0:02:52]}  Nf6 {[%clk 0:02:50]} 4. Nf3 {[%clk 0:02:51]}  dxc4 {[%clk 0:02:50]} 5. a4 {[%clk 0:02:50]}  a5 {[%clk 0:02:49]} 6. Ne5 {[%clk 0:02:49]}  e6 {[%clk 0:02:49]} 7. Nxc4 {[%clk 0:02:49]}  Bb4 {[%clk 0:02:48]} 8. e3 {[%clk 0:02:43]}  Nbd7 {[%clk 0:02:47]} 9. Be2 {[%clk 0:02:42]}  O-O {[%clk 0:02:44]} 10. O-O {[%clk 0:02:39]}  Qe7 {[%clk 0:02:45]} 11. Qc2 {[%clk 0:02:31]}  e5 {[%clk 0:02:43]} 12. dxe5 {[%clk 0:02:21]}  Nxe5 {[%clk 0:02:43]} 13. Rd1 {[%clk 0:02:22]}  Nxc4 {[%clk 0:02:38]} 14. Bxc4 {[%clk 0:02:23]}  Qe5 {[%clk 0:02:38]} 15. f4 {[%clk 0:02:13]}  Qe7 {[%clk 0:02:29]} 16. h3 {[%clk 0:02:03]}  h5 {[%clk 0:02:19]} 17. Qe2 {[%clk 0:02:00]}  Re8 {[%clk 0:02:15]} 18. Bd2 {[%clk 0:01:57]}  Bf5 {[%clk 0:02:13]} 19. Bd3 {[%clk 0:01:56]}  Bxd3 {[%clk 0:02:11]} 20. Qxd3 {[%clk 0:01:56]}  Rad8 {[%clk 0:02:10]} 21. Qe2 {[%clk 0:01:56]}  h4 {[%clk 0:02:06]} 22. Be1 {[%clk 0:01:50]}  Rxd1 {[%clk 0:01:59]} 23. Nxd1 {[%clk 0:01:51]}  Nd5 {[%clk 0:01:54]} 24. Bxb4 {[%clk 0:01:47]}  axb4 {[%clk 0:01:53]} 25. Kf2 {[%clk 0:01:39]}  Nxf4 {[%clk 0:01:52]} 26. Qc4 {[%clk 0:01:39]}  Nd5 {[%clk 0:01:50]} 27. Qd4 {[%clk 0:01:31]}  Qg5 {[%clk 0:01:49]} 28. e4 {[%clk 0:01:30]}  Qg3+ {[%clk 0:01:48]} 29. Kg1 {[%clk 0:01:30]}  Nf4 {[%clk 0:01:48]} 30. Qe3 {[%clk 0:01:28]}  Qxg2# {[%clk 0:01:46]} 0-1


[Site "https://www.chess.com"]

[Event "Titled Tuesday Blitz January 17 Late 2023"]
[White "Omelja, Artem"]
[Black "Kalajzic, Ivan"]
[WhiteFideId "14119846"]
[BlackFideId "14506378"]
[WhiteElo "2446"]
[BlackElo "2062"]
[Result "0-1"]
[Round "02"]
[TimeControl "180+2"]
[Date "2023.01.17"]
[WhiteClock "0:00:07"]
[BlackClock "0:00:26"]

1. h3 {[%clk 0:03:00]}  Nc6 {[%clk 0:02:58]} 2. b3 {[%clk 0:02:57]}  e5 {[%clk 0:02:58]} 3. Bb2 {[%clk 0:02:58]}  Bc5 {[%clk 0:02:58]} 4. c4 {[%clk 0:02:58]}  d6 {[%clk 0:02:57]} 5. Nc3 {[%clk 0:02:59]}  Nf6 {[%clk 0:02:57]} 6. e3 {[%clk 0:02:59]}  O-O {[%clk 0:02:56]} 7. a3 {[%clk 0:02:58]}  a5 {[%clk 0:02:56]} 8. Bd3 {[%clk 0:02:58]}  Re8 {[%clk 0:02:53]} 9. Bc2 {[%clk 0:02:57]}  e4 {[%clk 0:02:50]} 10. Nge2 {[%clk 0:02:46]}  Bf5 {[%clk 0:02:49]} 11. Ng3 {[%clk 0:02:46]}  Bg6 {[%clk 0:02:50]} 12. d3 {[%clk 0:02:39]}  exd3 {[%clk 0:02:41]} 13. Bxd3 {[%clk 0:02:40]}  Ne5 {[%clk 0:02:41]} 14. Bxg6 {[%clk 0:02:37]}  hxg6 {[%clk 0:02:41]} 15. Qc2 {[%clk 0:02:37]}  d5 {[%clk 0:02:32]} 16. O-O-O {[%clk 0:02:35]}  c6 {[%clk 0:02:25]} 17. Kb1 {[%clk 0:01:45]}  Qe7 {[%clk 0:02:23]} 18. cxd5 {[%clk 0:01:45]}  Bxa3 {[%clk 0:02:16]} 19. f4 {[%clk 0:01:26]}  Bxb2 {[%clk 0:02:07]} 20. Kxb2 {[%clk 0:01:24]}  Ned7 {[%clk 0:02:05]} 21. e4 {[%clk 0:01:20]}  cxd5 {[%clk 0:02:02]} 22. exd5 {[%clk 0:01:19]}  Qb4 {[%clk 0:01:44]} 23. Rhe1 {[%clk 0:01:12]}  a4 {[%clk 0:01:39]} 24. Rxe8+ {[%clk 0:01:09]}  Nxe8 {[%clk 0:01:38]} 25. Ra1 {[%clk 0:01:08]}  axb3 {[%clk 0:01:32]} 26. Qe2 {[%clk 0:00:50]}  Rxa1 {[%clk 0:01:23]} 27. Kxa1 {[%clk 0:00:39]}  Qxc3+ {[%clk 0:01:22]} 28. Kb1 {[%clk 0:00:40]}  Nef6 {[%clk 0:01:19]} 29. Nf1 {[%clk 0:00:36]}  Qc2+ {[%clk 0:01:17]} 30. Qxc2 {[%clk 0:00:36]}  bxc2+ {[%clk 0:01:18]} 31. Kxc2 {[%clk 0:00:37]}  Nxd5 {[%clk 0:01:18]} 32. g3 {[%clk 0:00:38]}  N7f6 {[%clk 0:01:15]} 33. Kd3 {[%clk 0:00:37]}  b5 {[%clk 0:01:13]} 34. Kd4 {[%clk 0:00:37]}  b4 {[%clk 0:01:13]} 35. Nd2 {[%clk 0:00:37]}  Kf8 {[%clk 0:01:09]} 36. g4 {[%clk 0:00:35]}  Nc3 {[%clk 0:01:04]} 37. Kc4 {[%clk 0:00:31]}  Ne2 {[%clk 0:01:00]} 38. Kxb4 {[%clk 0:00:17]}  Nxf4 {[%clk 0:01:00]} 39. g5 {[%clk 0:00:17]}  Nd7 {[%clk 0:00:49]} 40. h4 {[%clk 0:00:17]}  Ng2 {[%clk 0:00:45]} 41. Nf3 {[%clk 0:00:16]}  Ke7 {[%clk 0:00:43]} 42. Kc4 {[%clk 0:00:16]}  Ke6 {[%clk 0:00:44]} 43. Kd4 {[%clk 0:00:17]}  Kf5 {[%clk 0:00:44]} 44. Kd3 {[%clk 0:00:17]}  Kf4 {[%clk 0:00:44]} 45. Ke2 {[%clk 0:00:15]}  Ne5 {[%clk 0:00:42]} 46. Nd4 {[%clk 0:00:16]}  Nxh4 {[%clk 0:00:41]} 47. Kf2 {[%clk 0:00:16]}  Kxg5 {[%clk 0:00:41]} 48. Kg1 {[%clk 0:00:14]}  f5 {[%clk 0:00:41]} 49. Kh1 {[%clk 0:00:11]}  f4 {[%clk 0:00:40]} 50. Ne6+ {[%clk 0:00:10]}  Kf5 {[%clk 0:00:39]} 51. Nxg7+ {[%clk 0:00:10]}  Kg4 {[%clk 0:00:39]} 52. Ne6 {[%clk 0:00:09]}  Kg3 {[%clk 0:00:37]} 53. Nd4 {[%clk 0:00:08]}  g5 {[%clk 0:00:30]} 54. Kg1 {[%clk 0:00:06]}  Nhf3+ {[%clk 0:00:29]} 55. Nxf3 {[%clk 0:00:04]}  Nxf3+ {[%clk 0:00:29]} 56. Kh1 {[%clk 0:00:04]}  Nh4 {[%clk 0:00:28]} 57. Kg1 {[%clk 0:00:05]}  g4 {[%clk 0:00:28]} 58. Kh1 {[%clk 0:00:05]}  f3 {[%clk 0:00:27]} 59. Kg1 {[%clk 0:00:06]}  Kf4 {[%clk 0:00:25]} 60. Kf1 {[%clk 0:00:07]}  g3 {[%clk 0:00:25]} 61. Kg1 {[%clk 0:00:07]}  Nf5 {[%clk 0:00:25]} 62. Kh1 {[%clk 0:00:06]}  Kg4 {[%clk 0:00:25]} 63. Kg1 {[%clk 0:00:07]}  Kh3 {[%clk 0:00:26]} 64. Kf1 {[%clk 0:00:06]}  Ne3+ {[%clk 0:00:25]} 65. Ke1 {[%clk 0:00:07]}  f2+ {[%clk 0:00:26]} 66. Kd2 {[%clk 0:00:08]}  f1=Q {[%clk 0:00:26]} 67. Kc3 {[%clk 0:00:09]}  g2 {[%clk 0:00:26]} 68. Kd4 {[%clk 0:00:09]}  g1=Q {[%clk 0:00:26]} 69. Ke4 {[%clk 0:00:10]}  Qg4+ {[%clk 0:00:26]} 70. Kxe3 {[%clk 0:00:06]}  Qff3+ {[%clk 0:00:26]} 71. Kd2 {[%clk 0:00:06]}  Qgg2+ {[%clk 0:00:26]} 72. Ke1 {[%clk 0:00:07]}  Qff1# {[%clk 0:00:26]} 0-1


[Site "https://www.chess.com"]

[Event "Titled Tuesday Blitz January 17 Late 2023"]
[White "Kostiukov, Alexandr"]
[Black "Sielecki, Christof"]
[WhiteFideId "14108100"]
[BlackFideId "4620437"]
[WhiteElo "2271"]
[BlackElo "2419"]
[Result "0-1"]
[Round "02"]
[TimeControl "180+2"]
[Date "2023.01.17"]
[WhiteClock "0:01:02"]
[BlackClock "0:02:15"]

1. g3 {[%clk 0:02:53]}  e5 {[%clk 0:02:55]} 2. c4 {[%clk 0:02:52]}  Nc6 {[%clk 0:02:53]} 3. Bg2 {[%clk 0:02:52]}  Bc5 {[%clk 0:02:54]} 4. e3 {[%clk 0:02:52]}  d6 {[%clk 0:02:54]} 5. Ne2 {[%clk 0:02:53]}  a6 {[%clk 0:02:54]} 6. O-O {[%clk 0:02:53]}  Ba7 {[%clk 0:02:54]} 7. d4 {[%clk 0:02:51]}  h5 {[%clk 0:02:54]} 8. h4 {[%clk 0:02:47]}  g5 {[%clk 0:02:52]} 9. hxg5 {[%clk 0:02:45]}  Qxg5 {[%clk 0:02:53]} 10. Nbc3 {[%clk 0:02:39]}  h4 {[%clk 0:02:52]} 11. Nd5 {[%clk 0:02:01]}  Kd8 {[%clk 0:02:39]} 12. dxe5 {[%clk 0:01:56]}  hxg3 {[%clk 0:02:21]} 13. f4 {[%clk 0:01:11]}  Qh4 {[%clk 0:02:16]} 14. Re1 {[%clk 0:01:03]}  Qh2+ {[%clk 0:02:15]} 15. Kf1 {[%clk 0:01:02]}  Bh3 {[%clk 0:02:15]} 0-1


[Site "https://www.chess.com"]

[Event "Titled Tuesday Blitz January 17 Late 2023"]
[White "Tomb, Maroun"]
[Black "Seletsky, Grigory"]
[WhiteFideId "5300398"]
[BlackFideId "14112191"]
[WhiteElo "2090"]
[BlackElo "2259"]
[Result "0-1"]
[Round "02"]
[TimeControl "180+2"]
[Date "2023.01.17"]
[WhiteClock "0:00:59"]
[BlackClock "0:00:15"]

1. e4 {[%clk 0:03:00]}  c5 {[%clk 0:02:38]} 2. Ne2 {[%clk 0:02:59]}  d6 {[%clk 0:02:37]} 3. g3 {[%clk 0:02:58]}  Nc6 {[%clk 0:02:37]} 4. Bg2 {[%clk 0:02:59]}  g6 {[%clk 0:02:37]} 5. c3 {[%clk 0:02:59]}  Bg7 {[%clk 0:02:37]} 6. d4 {[%clk 0:03:00]}  Qc7 {[%clk 0:02:34]} 7. O-O {[%clk 0:03:00]}  a6 {[%clk 0:02:34]} 8. Be3 {[%clk 0:02:58]}  b6 {[%clk 0:02:31]} 9. Nd2 {[%clk 0:02:57]}  Bb7 {[%clk 0:02:32]} 10. Rc1 {[%clk 0:02:57]}  Nf6 {[%clk 0:02:28]} 11. h3 {[%clk 0:02:57]}  O-O {[%clk 0:02:14]} 12. f4 {[%clk 0:02:57]}  Rfd8 {[%clk 0:02:08]} 13. g4 {[%clk 0:02:58]}  Rac8 {[%clk 0:01:59]} 14. Ng3 {[%clk 0:02:58]}  b5 {[%clk 0:01:44]} 15. g5 {[%clk 0:02:54]}  Ne8 {[%clk 0:01:37]} 16. h4 {[%clk 0:02:53]}  cxd4 {[%clk 0:01:34]} 17. cxd4 {[%clk 0:02:52]}  Qb6 {[%clk 0:01:34]} 18. Nf3 {[%clk 0:02:50]}  Na5 {[%clk 0:01:24]} 19. Rxc8 {[%clk 0:02:44]}  Rxc8 {[%clk 0:01:23]} 20. b3 {[%clk 0:02:41]}  d5 {[%clk 0:01:21]} 21. e5 {[%clk 0:02:37]}  e6 {[%clk 0:01:21]} 22. Ne1 {[%clk 0:02:28]}  Bf8 {[%clk 0:01:17]} 23. Nd3 {[%clk 0:02:29]}  b4 {[%clk 0:01:15]} 24. h5 {[%clk 0:02:22]}  Nc6 {[%clk 0:01:14]} 25. Ne2 {[%clk 0:02:21]}  a5 {[%clk 0:01:13]} 26. Bf3 {[%clk 0:02:20]}  Ba6 {[%clk 0:01:11]} 27. Kg2 {[%clk 0:02:19]}  Ng7 {[%clk 0:01:09]} 28. Nc5 {[%clk 0:02:13]}  Bxe2 {[%clk 0:01:02]} 29. Bxe2 {[%clk 0:02:10]}  Nf5 {[%clk 0:00:49]} 30. Bf2 {[%clk 0:02:01]}  Bxc5 {[%clk 0:00:39]} 31. dxc5 {[%clk 0:02:00]}  Qc7 {[%clk 0:00:37]} 32. Qd3 {[%clk 0:01:43]}  Rd8 {[%clk 0:00:33]} 33. Rh1 {[%clk 0:01:41]}  d4 {[%clk 0:00:31]} 34. hxg6 {[%clk 0:01:38]}  fxg6 {[%clk 0:00:30]} 35. Bf3 {[%clk 0:01:38]}  Nce7 {[%clk 0:00:28]} 36. Qc4 {[%clk 0:01:37]}  Nd5 {[%clk 0:00:28]} 37. Bxd5 {[%clk 0:01:29]}  Rxd5 {[%clk 0:00:28]} 38. c6 {[%clk 0:01:25]}  d3 {[%clk 0:00:28]} 39. Rd1 {[%clk 0:01:22]}  d2 {[%clk 0:00:28]} 40. Qc2 {[%clk 0:01:18]}  Kf7 {[%clk 0:00:25]} 41. Kg1 {[%clk 0:01:17]}  Ke8 {[%clk 0:00:23]} 42. Rxd2 {[%clk 0:01:17]}  Rxd2 {[%clk 0:00:21]} 43. Qxd2 {[%clk 0:01:18]}  Qxc6 {[%clk 0:00:20]} 44. Qe2 {[%clk 0:01:18]}  Qc1+ {[%clk 0:00:18]} 45. Kg2 {[%clk 0:01:18]}  Qxf4 {[%clk 0:00:19]} 46. Qb5+ {[%clk 0:01:17]}  Kf7 {[%clk 0:00:17]} 47. Qb7+ {[%clk 0:01:12]}  Ne7 {[%clk 0:00:17]} 48. Qc7 {[%clk 0:01:10]}  Qxg5+ {[%clk 0:00:17]} 49. Kf1 {[%clk 0:01:11]}  Qf5 {[%clk 0:00:15]} 50. Qxa5 {[%clk 0:01:10]}  Qd3+ {[%clk 0:00:13]} 51. Kg2 {[%clk 0:01:10]}  Qd5+ {[%clk 0:00:12]} 52. Qxd5 {[%clk 0:01:09]}  Nxd5 {[%clk 0:00:13]} 53. Kf3 {[%clk 0:01:04]}  g5 {[%clk 0:00:14]} 54. Ke4 {[%clk 0:01:05]}  Kg6 {[%clk 0:00:14]} 55. Bc5 {[%clk 0:01:01]}  h5 {[%clk 0:00:14]} 56. a4 {[%clk 0:01:01]}  h4 {[%clk 0:00:15]} 57. a5 {[%clk 0:00:57]}  g4 {[%clk 0:00:14]} 58. a6 {[%clk 0:00:56]}  h3 {[%clk 0:00:14]} 59. Bg1 {[%clk 0:00:46]}  g3 {[%clk 0:00:14]} 60. Kf3 {[%clk 0:00:46]}  h2 {[%clk 0:00:12]} 61. Bxh2 {[%clk 0:00:46]}  gxh2 {[%clk 0:00:13]} 62. Kg2 {[%clk 0:00:47]}  Kf5 {[%clk 0:00:13]} 63. a7 {[%clk 0:00:47]}  Nc7 {[%clk 0:00:12]} 64. Kxh2 {[%clk 0:00:48]}  Kxe5 {[%clk 0:00:11]} 65. Kg3 {[%clk 0:00:49]}  Kd4 {[%clk 0:00:11]} 66. Kf4 {[%clk 0:00:49]}  e5+ {[%clk 0:00:11]} 67. Kf5 {[%clk 0:00:50]}  e4 {[%clk 0:00:12]} 68. Kf6 {[%clk 0:00:51]}  e3 {[%clk 0:00:12]} 69. Ke7 {[%clk 0:00:51]}  e2 {[%clk 0:00:13]} 70. Kd7 {[%clk 0:00:52]}  Na8 {[%clk 0:00:13]} 71. Kc8 {[%clk 0:00:53]}  e1=Q {[%clk 0:00:13]} 72. Kb7 {[%clk 0:00:54]}  Qe4+ {[%clk 0:00:13]} 73. Kb8 {[%clk 0:00:54]}  Kc3 {[%clk 0:00:13]} 74. Kc8 {[%clk 0:00:53]}  Kxb3 {[%clk 0:00:14]} 75. Kb8 {[%clk 0:00:53]}  Ka4 {[%clk 0:00:14]} 76. Kc8 {[%clk 0:00:54]}  Ka5 {[%clk 0:00:14]} 77. Kb8 {[%clk 0:00:55]}  Ka6 {[%clk 0:00:14]} 78. Kc8 {[%clk 0:00:55]}  Kxa7 {[%clk 0:00:15]} 79. Kd8 {[%clk 0:00:56]}  b3 {[%clk 0:00:15]} 80. Kc8 {[%clk 0:00:57]}  b2 {[%clk 0:00:16]} 81. Kd8 {[%clk 0:00:58]}  b1=Q {[%clk 0:00:16]} 82. Kc8 {[%clk 0:00:59]}  Qbb7+ {[%clk 0:00:16]} 83. Kd8 {[%clk 0:00:59]}  Qee7# {[%clk 0:00:15]} 0-1


[Site "https://www.chess.com"]

[Event "Titled Tuesday Blitz January 17 Late 2023"]
[White "Souleidis, Georgios"]
[Black "Dardha, Arben"]
[WhiteFideId "4206827"]
[BlackFideId "4700481"]
[WhiteElo "2419"]
[BlackElo "2262"]
[Result "1-0"]
[Round "02"]
[TimeControl "180+2"]
[Date "2023.01.17"]
[WhiteClock "0:01:07"]
[BlackClock "0:01:30"]

1. e4 {[%clk 0:03:00]}  c5 {[%clk 0:02:57]} 2. Nf3 {[%clk 0:03:00]}  Nc6 {[%clk 0:02:57]} 3. Bc4 {[%clk 0:03:00]}  e6 {[%clk 0:02:56]} 4. O-O {[%clk 0:03:00]}  d5 {[%clk 0:02:56]} 5. Bb5 {[%clk 0:03:00]}  Be7 {[%clk 0:02:56]} 6. Ne5 {[%clk 0:02:57]}  Qc7 {[%clk 0:02:54]} 7. Nxc6 {[%clk 0:02:43]}  bxc6 {[%clk 0:02:53]} 8. Ba4 {[%clk 0:02:35]}  dxe4 {[%clk 0:02:52]} 9. Nc3 {[%clk 0:02:34]}  f5 {[%clk 0:02:52]} 10. f3 {[%clk 0:02:32]}  exf3 {[%clk 0:02:51]} 11. Qxf3 {[%clk 0:02:33]}  Bd7 {[%clk 0:02:48]} 12. d3 {[%clk 0:02:31]}  Nf6 {[%clk 0:02:48]} 13. Bf4 {[%clk 0:02:31]}  e5 {[%clk 0:02:47]} 14. Bg5 {[%clk 0:02:12]}  O-O {[%clk 0:02:45]} 15. Rae1 {[%clk 0:02:12]}  h6 {[%clk 0:02:41]} 16. Bd2 {[%clk 0:02:07]}  Bd6 {[%clk 0:02:40]} 17. Kh1 {[%clk 0:02:03]}  Rae8 {[%clk 0:02:37]} 18. h3 {[%clk 0:01:49]}  e4 {[%clk 0:02:35]} 19. dxe4 {[%clk 0:01:42]}  fxe4 {[%clk 0:02:32]} 20. Qe2 {[%clk 0:01:35]}  Bg3 {[%clk 0:02:27]} 21. Rd1 {[%clk 0:01:31]}  Kh8 {[%clk 0:02:21]} 22. Be3 {[%clk 0:01:29]}  Bd6 {[%clk 0:01:58]} 23. Bb3 {[%clk 0:01:29]}  Re5 {[%clk 0:01:56]} 24. Bf4 {[%clk 0:01:24]}  Nh5 {[%clk 0:01:56]} 25. Bxe5 {[%clk 0:01:10]}  Rxf1+ {[%clk 0:01:54]} 26. Qxf1 {[%clk 0:01:11]}  Bxe5 {[%clk 0:01:50]} 27. Qf8+ {[%clk 0:01:10]}  Kh7 {[%clk 0:01:49]} 28. Qg8+ {[%clk 0:01:08]}  Kg6 {[%clk 0:01:48]} 29. Bf7+ {[%clk 0:01:08]}  Kg5 {[%clk 0:01:37]} 30. Bxh5 {[%clk 0:01:08]}  Kxh5 {[%clk 0:01:33]} 31. Qf7+ {[%clk 0:01:08]}  g6 {[%clk 0:01:30]} 32. Qxd7 {[%clk 0:01:07]} 1-0


[Site "https://www.chess.com"]

[Event "Titled Tuesday Blitz January 17 Late 2023"]
[White "Smith, Garrett L"]
[Black "Pasti, Aron"]
[WhiteFideId "2024829"]
[BlackFideId "785857"]
[WhiteElo "2047"]
[BlackElo "2361"]
[Result "0-1"]
[Round "02"]
[TimeControl "180+2"]
[Date "2023.01.17"]
[WhiteClock "0:01:33"]
[BlackClock "0:00:40"]

1. e4 {[%clk 0:03:00]}  c5 {[%clk 0:03:00]} 2. a3 {[%clk 0:03:01]}  a6 {[%clk 0:02:59]} 3. b4 {[%clk 0:03:00]}  cxb4 {[%clk 0:02:59]} 4. axb4 {[%clk 0:03:01]}  b6 {[%clk 0:02:59]} 5. Nc3 {[%clk 0:02:59]}  Bb7 {[%clk 0:03:00]} 6. Nf3 {[%clk 0:02:59]}  d6 {[%clk 0:02:58]} 7. Bc4 {[%clk 0:02:50]}  Nf6 {[%clk 0:02:55]} 8. d3 {[%clk 0:02:47]}  Nbd7 {[%clk 0:02:48]} 9. Bg5 {[%clk 0:02:39]}  g6 {[%clk 0:02:47]} 10. O-O {[%clk 0:02:39]}  Bg7 {[%clk 0:02:47]} 11. Rb1 {[%clk 0:02:38]}  O-O {[%clk 0:02:46]} 12. Re1 {[%clk 0:02:37]}  b5 {[%clk 0:02:46]} 13. Bb3 {[%clk 0:02:31]}  h6 {[%clk 0:02:40]} 14. Bh4 {[%clk 0:02:25]}  Rc8 {[%clk 0:02:31]} 15. Qd2 {[%clk 0:02:23]}  Rxc3 {[%clk 0:02:23]} 16. Qxc3 {[%clk 0:02:20]}  Nxe4 {[%clk 0:02:21]} 17. Bxe7 {[%clk 0:02:04]}  Nxc3 {[%clk 0:01:01]} 18. Bxd8 {[%clk 0:02:03]}  Rxd8 {[%clk 0:01:01]} 19. Rbc1 {[%clk 0:01:56]}  Bxf3 {[%clk 0:00:54]} 20. gxf3 {[%clk 0:01:56]}  Ne5 {[%clk 0:00:54]} 21. Kg2 {[%clk 0:01:55]}  d5 {[%clk 0:00:50]} 22. f4 {[%clk 0:01:54]}  Nc6 {[%clk 0:00:47]} 23. Kg3 {[%clk 0:01:46]}  Bf6 {[%clk 0:00:44]} 24. h3 {[%clk 0:01:44]}  Nxb4 {[%clk 0:00:43]} 25. Re3 {[%clk 0:01:38]}  d4 {[%clk 0:00:42]} 26. Ree1 {[%clk 0:01:36]}  a5 {[%clk 0:00:43]} 27. f5 {[%clk 0:01:33]}  g5 {[%clk 0:00:40]} 0-1


[Site "https://www.chess.com"]

[Event "Titled Tuesday Blitz January 17 Late 2023"]
[White "Culum, Sanjin"]
[Black "Gerbelli Neto, Eduardo"]
[WhiteFideId "14420937"]
[BlackFideId "2103281"]
[WhiteElo "2242"]
[BlackElo "2114"]
[Result "0-1"]
[Round "02"]
[TimeControl "180+2"]
[Date "2023.01.17"]
[WhiteClock "0:00:16"]
[BlackClock "0:00:24"]

1. Nf3 {[%clk 0:02:58]}  Nf6 {[%clk 0:02:59]} 2. b3 {[%clk 0:02:57]}  d5 {[%clk 0:02:57]} 3. Bb2 {[%clk 0:02:58]}  e6 {[%clk 0:02:57]} 4. e3 {[%clk 0:02:58]}  c5 {[%clk 0:02:57]} 5. c4 {[%clk 0:02:59]}  Be7 {[%clk 0:02:56]} 6. cxd5 {[%clk 0:02:59]}  exd5 {[%clk 0:02:56]} 7. d4 {[%clk 0:02:59]}  O-O {[%clk 0:02:41]} 8. Bd3 {[%clk 0:02:46]}  Nc6 {[%clk 0:02:39]} 9. O-O {[%clk 0:02:44]}  Bg4 {[%clk 0:02:30]} 10. Nbd2 {[%clk 0:01:52]}  cxd4 {[%clk 0:02:25]} 11. exd4 {[%clk 0:01:46]}  Bb4 {[%clk 0:02:19]} 12. h3 {[%clk 0:01:44]}  Bh5 {[%clk 0:02:12]} 13. g4 {[%clk 0:01:43]}  Bg6 {[%clk 0:02:11]} 14. Bxg6 {[%clk 0:01:44]}  fxg6 {[%clk 0:02:06]} 15. Ne5 {[%clk 0:01:31]}  Bxd2 {[%clk 0:01:52]} 16. Qxd2 {[%clk 0:01:29]}  Ne4 {[%clk 0:01:52]} 17. Qe3 {[%clk 0:01:24]}  Rc8 {[%clk 0:01:26]} 18. Rac1 {[%clk 0:01:23]}  Nxe5 {[%clk 0:00:51]} 19. dxe5 {[%clk 0:01:24]}  Rxc1 {[%clk 0:00:51]} 20. Rxc1 {[%clk 0:01:25]}  Rxf2 {[%clk 0:00:46]} 21. Rd1 {[%clk 0:01:07]}  Qf8 {[%clk 0:00:37]} 22. e6 {[%clk 0:00:54]}  Rxb2 {[%clk 0:00:33]} 23. Rxd5 {[%clk 0:00:39]}  Rb1+ {[%clk 0:00:27]} 24. Kh2 {[%clk 0:00:37]}  Rf1 {[%clk 0:00:15]} 25. Rd7 {[%clk 0:00:09]}  Qb8+ {[%clk 0:00:13]} 26. Kg2 {[%clk 0:00:09]}  Rf2+ {[%clk 0:00:13]} 27. Qxf2 {[%clk 0:00:07]}  Nxf2 {[%clk 0:00:14]} 28. e7 {[%clk 0:00:08]}  Qe8 {[%clk 0:00:13]} 29. Rd8 {[%clk 0:00:08]}  Kf7 {[%clk 0:00:13]} 30. Rxe8 {[%clk 0:00:09]}  Kxe8 {[%clk 0:00:13]} 31. Kxf2 {[%clk 0:00:10]}  Kxe7 {[%clk 0:00:14]} 32. Ke3 {[%clk 0:00:10]}  Kd6 {[%clk 0:00:15]} 33. Kd4 {[%clk 0:00:10]}  g5 {[%clk 0:00:16]} 34. b4 {[%clk 0:00:09]}  b5 {[%clk 0:00:16]} 35. a3 {[%clk 0:00:08]}  g6 {[%clk 0:00:16]} 36. Ke4 {[%clk 0:00:07]}  h5 {[%clk 0:00:16]} 37. gxh5 {[%clk 0:00:07]}  gxh5 {[%clk 0:00:15]} 38. Kf5 {[%clk 0:00:07]}  g4 {[%clk 0:00:16]} 39. hxg4 {[%clk 0:00:08]}  hxg4 {[%clk 0:00:16]} 40. Kxg4 {[%clk 0:00:09]}  Kd5 {[%clk 0:00:17]} 41. Kf3 {[%clk 0:00:10]}  Kc4 {[%clk 0:00:18]} 42. Ke3 {[%clk 0:00:10]}  Kb3 {[%clk 0:00:19]} 43. Kd4 {[%clk 0:00:11]}  Kxa3 {[%clk 0:00:20]} 44. Kc3 {[%clk 0:00:08]}  a6 {[%clk 0:00:18]} 45. Kc2 {[%clk 0:00:09]}  Kxb4 {[%clk 0:00:19]} 46. Kb2 {[%clk 0:00:09]}  a5 {[%clk 0:00:19]} 47. Ka2 {[%clk 0:00:10]}  a4 {[%clk 0:00:20]} 48. Kb2 {[%clk 0:00:10]}  a3+ {[%clk 0:00:20]} 49. Ka2 {[%clk 0:00:11]}  Ka4 {[%clk 0:00:21]} 50. Kb1 {[%clk 0:00:12]}  b4 {[%clk 0:00:21]} 51. Ka1 {[%clk 0:00:12]}  b3 {[%clk 0:00:22]} 52. Kb1 {[%clk 0:00:13]}  Kb4 {[%clk 0:00:23]} 53. Ka1 {[%clk 0:00:13]}  Kc3 {[%clk 0:00:24]} 54. Kb1 {[%clk 0:00:14]}  b2 {[%clk 0:00:22]} 55. Ka2 {[%clk 0:00:14]}  Kc2 {[%clk 0:00:23]} 56. Kxa3 {[%clk 0:00:15]}  b1=Q {[%clk 0:00:23]} 57. Ka4 {[%clk 0:00:16]}  Qb6 {[%clk 0:00:24]} 58. Ka3 {[%clk 0:00:16]}  Qa5# {[%clk 0:00:24]} 0-1


[Site "https://www.chess.com"]